bitfinex-derivatives/quotes_ETHF0:USTF0_20250104
["timestamp","ask_amount","ask_price","bid_price","bid_amount"]
[1736007086232,1.44387,3612.3,3612.2,0.93]
[1736007086415,1.44387,3612.3,3611.6,4.33246198]
[1736007086416,0.27691,3611.7,3611.6,4.33246198]
[1736007086615,0.27691,3611.7,3611.6,6.08246198]
[1736007087124,0.27691,3611.7,3611.6,4.33246198]
[1736007087327,3.027,3611.9,3610.9,0.27697]
[1736007087328,0.27694,3611.4,3610.9,0.27697]
[1736007087516,0.27694,3611.4,3610.9,3.96697]
[1736007087924,1.44293,3611.5,3611.0,0.27697]
[1736007088121,1.44293,3611.5,3611.0,3.91697]
[1736007089026,0.27694,3611.4,3611.0,3.64]
[1736007089431,1.44293,3611.5,3611.0,3.91697]
[1736007090022,1.166,3611.5,3611.1,2.09755402]
[1736007090226,1.166,3611.5,3611.2,0.27695]
[1736007090521,1.166,3611.6,3611.2,3.59]
[1736007090726,1.166,3611.6,3611.2,3.86695]
[1736007090915,1.166,3611.6,3611.2,3.59]
[1736007091117,1.44293,3611.6,3611.2,3.59]
[1736007091320,0.27694,3611.5,3611.2,3.59]
[1736007091629,1.166,3611.6,3611.2,3.59]
[1736007091816,1.44293,3611.6,3611.2,3.59]
[1736007093027,1.166,3611.6,3611.2,3.59]
[1736007093430,1.166,3611.6,3611.3,0.27694]
[1736007093633,1.166,3611.6,3611.4,2.09755402]
[1736007093934,1.166,3611.6,3611.4,3.78448402]
[1736007094121,1.166,3611.6,3611.5,1.466]
[1736007094324,1.166,3611.6,3611.5,1.866]
[1736007094727,2.10952227,3612.0,3611.5,1.866]
[1736007095032,2.10952227,3612.0,3611.9,0.2769]
[1736007095334,2.10952227,3612.2,3611.9,4.17]
[1736007095526,2.10952227,3612.2,3612.1,2.37443402]
[1736007095727,2.10952227,3612.2,3612.1,5.45443402]
[1736007096134,2.10952227,3612.2,3612.1,5.17755402]
[1736007096333,2.38640227,3612.2,3612.1,5.17755402]
[1736007096535,2.10952227,3612.2,3612.1,3.08]
[1736007097137,1.5862,3612.5,3612.1,3.08]
[1736007097438,0.27686,3612.4,3612.1,3.08]
[1736007097643,1.5862,3612.5,3612.1,3.08]
[1736007097939,0.27687,3612.3,3612.1,3.08]
[1736007098130,1.5725,3612.4,3612.1,3.08]
[1736007098334,1.84936,3612.4,3612.1,3.08]
[1736007098640,1.84936,3612.4,3612.1,3.35688]
[1736007099033,1.84936,3612.4,3612.1,3.08]
[1736007099634,1.5725,3612.4,3612.1,3.35688]
[1736007100034,2.10952227,3612.8,3612.1,5.17755402]
[1736007100241,3.27552227,3612.8,3612.4,2.09755402]
[1736007100441,1.44283,3612.8,3612.5,1.3458]
[1736007100634,1.44283,3612.8,3612.5,2.0658]
[1736007100830,1.166,3612.8,3612.5,2.0658]
[1736007101031,5.31732227,3612.9,3612.7,0.27684]
[1736007101236,5.31732227,3612.9,3612.7,0.56684]
[1736007101437,5.31732227,3612.9,3612.7,0.29]
[1736007101438,3.2078,3612.9,3612.7,0.29]
[1736007102939,3.2078,3612.9,3612.4,3.2078]
[1736007103144,0.27685,3612.6,3612.4,0.13]
[1736007103347,3.2078,3612.9,3612.4,0.13]
[1736007103545,0.27684,3612.7,3612.4,0.13]
[1736007104639,0.27685,3612.6,3612.4,0.13]
[1736007104846,1.44285,3612.6,3612.4,0.13]
[1736007105353,1.166,3612.6,3612.4,0.13]
[1736007105542,1.166,3612.6,3612.4,0.40686]
[1736007105856,1.166,3612.6,3612.4,0.13]
[1736007106442,1.166,3612.6,3612.5,0.27685]
[1736007106748,5.31732227,3612.9,3612.7,0.27684]
[1736007106947,3.2078,3612.9,3612.8,0.27683]
[1736007107154,3.2078,3612.9,3612.8,1.77993]
[1736007107351,2.10952227,3613.1,3613.0,0.27681]
[1736007107652,2.10952227,3613.1,3613.0,4.95436402]
[1736007108148,0.00202227,3613.1,3613.0,4.95436402]
[1736007108350,2.13793077,3613.6,3613.5,0.27678]
[1736007108543,2.13793077,3613.6,3613.5,5.91433402]
[1736007108939,0.03053077,3613.6,3613.5,10.91433402]
[1736007109147,0.03053077,3613.6,3613.5,8.81678]
[1736007109643,0.03053077,3613.6,3613.5,3.81678]
[1736007110045,0.27674,3614.0,3613.8,0.27675]
[1736007110257,3.2078,3614.2,3613.8,1.83]
[1736007110545,3.48453,3614.2,3614.0,0.27674]
[1736007110745,0.27673,3614.2,3614.0,0.34]
[1736007111249,3.17986497,3614.6,3614.0,0.34]
[1736007111445,4.34586497,3614.6,3614.1,0.27673]
[1736007111646,0.2767,3614.5,3614.1,2.18673]
[1736007112149,1.166,3614.6,3614.1,2.18673]
[1736007112344,1.4427,3614.6,3614.1,1.91]
[1736007112654,5.8417,3614.7,3614.4,0.2767]
[1736007112655,2.6339,3614.7,3614.4,0.2767]
[1736007112849,2.6339,3614.7,3614.5,0.2767]
[1736007113046,2.6339,3614.7,3614.2,5.30535402]
[1736007113247,2.6339,3614.7,3614.2,6.60535402]
[1736007113655,2.6339,3614.7,3614.3,0.27672]
[1736007113853,2.6339,3614.7,3614.3,1.28672]
[1736007114747,2.6339,3614.7,3614.3,1.28671]
[1736007114940,2.91059,3614.7,3614.3,1.01]
[1736007115547,2.6339,3614.7,3614.3,1.28671]
[1736007116049,0.27671,3614.5,3614.2,3.2078]
[1736007116256,0.27671,3614.5,3614.2,3.8078]
[1736007116550,40.8,3614.5,3614.2,3.8078]
[1736007116852,0.27671,3614.4,3614.2,3.8078]
[1736007117049,0.27672,3614.3,3613.8,3.2078]
[1736007117249,3.2078,3614.6,3613.8,3.80455]
[1736007117445,3.2078,3614.6,3614.2,0.27672]
[1736007117446,0.2767,3614.6,3614.2,0.27672]
[1736007117649,2.6339,3614.7,3614.2,0.35672]
[1736007117959,2.6339,3614.7,3614.2,5.38535402]
[1736007118256,2.6339,3614.7,3614.5,0.27669]
[1736007118547,2.6339,3614.7,3614.5,0.48669]
[1736007119149,2.6339,3614.7,3614.6,0.27669]
[1736007119351,1.3012,3614.7,3614.6,0.65669]
[1736007119550,1.3012,3614.7,3614.6,0.38]
[1736007120558,1.57788,3614.7,3614.2,3.48452]
[1736007120759,0.27671,3614.5,3614.2,1.71]
[1736007121149,1.3888,3614.6,3614.2,1.98672]
[1736007121150,1.6655,3614.6,3614.2,1.98672]
[1736007121356,1.3888,3614.6,3614.2,1.71]
[1736007121557,0.2767,3614.5,3614.2,1.71]
[1736007122654,0.2767,3614.5,3614.2,1.98672]
[1736007122850,1.6655,3614.6,3614.2,1.98672]
[1736007123056,1.6655,3614.6,3614.2,4.08427402]
[1736007123260,1.3888,3614.6,3614.2,4.08427402]
[1736007123458,0.2767,3614.5,3614.2,4.08427402]
[1736007124359,1.3888,3614.6,3614.2,3.80755402]
[1736007124556,1.6655,3614.6,3614.3,0.27671]
[1736007124754,1.6655,3614.6,3614.3,2.54671]
[1736007125154,1.3888,3614.6,3614.3,2.27]
[1736007125355,0.2767,3614.5,3614.3,2.27]
[1736007125961,1.3888,3614.6,3614.5,0.2767]
[1736007126155,1.3888,3614.6,3614.5,3.58425402]
[1736007127566,0.22376129,3615.3,3614.5,3.58425402]
[1736007127567,0.27664,3615.3,3615.0,0.27666]
[1736007127867,0.27664,3615.3,3615.0,2.86421402]
[1736007128064,1.4013,3615.2,3615.0,2.58755402]
[1736007128267,1.4013,3615.2,3615.1,0.27665]
[1736007128469,1.4013,3615.2,3615.1,1.00665]
[1736007128673,1.4013,3615.2,3615.1,0.73]
[1736007129777,1.4013,3615.2,3615.1,1.00665]
[1736007129981,1.3408,3615.4,3615.3,0.27664]
[1736007130273,1.164,3615.8,3615.7,0.27661]
[1736007130274,1.342,3615.8,3615.7,0.27661]
[1736007130572,1.342,3615.8,3615.7,1.26661]
[1736007131267,1.342,3615.8,3615.3,5.30535402]
[1736007131477,1.61861,3615.8,3615.3,6.70535402]
[1736007131776,1.61861,3615.8,3615.3,6.98198402]
[1736007132071,1.342,3615.8,3615.5,0.27662]
[1736007132375,1.342,3615.8,3615.5,0.48662]
[1736007132979,1.342,3615.8,3615.6,0.27661]
[1736007133278,1.342,3615.8,3615.6,0.11]
[1736007134181,1.342,3615.8,3615.6,2.20755402]
[1736007134375,1.342,3615.8,3615.7,0.27661]
[1736007134681,3.2078,3615.9,3615.7,0.05]
[1736007134980,3.2078,3615.9,3615.6,2.09755402]
[1736007135175,0.2766,3615.8,3615.6,0.14]
[1736007135479,1.164,3616.1,3615.6,0.14]
[1736007135682,0.27661,3615.7,3615.6,0.14]
[1736007136174,0.27663,3615.5,3615.3,5.30535402]
[1736007136374,2.8192,3615.4,3615.3,6.01535402]
[1736007136581,1.4049,3615.4,3615.3,6.29199402]
[1736007137478,2.7398,3615.9,3615.7,0.27661]
[1736007137678,1.3271,3615.8,3615.7,0.44661]
[1736007137877,1.3271,3615.8,3615.7,3.65441]
[1736007139279,1.3722,3616.4,3615.7,3.3778]
[1736007139280,2.5362,3616.4,3615.7,3.3778]
[1736007139479,2.5362,3616.4,3616.2,0.27657]
[1736007139480,3.8633,3616.4,3616.2,0.27657]
[1736007139674,3.8633,3616.4,3616.2,0.33657]
[1736007140474,4.13985,3616.4,3616.2,0.06]
[1736007140678,3.8633,3616.4,3616.2,0.06]
[1736007140877,4.13986,3616.4,3615.9,0.27659]
[1736007141082,3.8633,3616.4,3615.9,0.33659]
[1736007141278,4.13986,3616.4,3615.9,0.33659]
[1736007141480,4.13986,3616.4,3615.9,0.06]
[1736007141680,4.13986,3616.4,3616.0,0.27658]
[1736007141881,4.13986,3616.4,3616.0,0.36658]
[1736007142084,1.3271,3616.4,3616.2,0.27656]
[1736007142279,1.3271,3616.4,3616.2,0.03]
[1736007142480,1.60365,3616.4,3616.2,0.03]
[1736007143386,1.3271,3616.4,3616.2,0.30657]
[1736007143592,1.3271,3616.4,3616.2,0.03]
[1736007143785,0.00231013,3616.3,3616.2,0.03]
[1736007145293,0.00231013,3616.3,3616.2,0.30657]
[1736007145885,0.00231013,3616.3,3616.2,2.40412402]
[1736007146088,0.00231013,3616.3,3616.2,0.30657]
[1736007146988,0.00231013,3616.3,3616.2,7.40412402]
[1736007147790,0.00231013,3616.3,3616.2,0.30657]
[1736007151289,1.32551013,3616.3,3616.2,0.30657]
[1736007151490,2.68611013,3616.3,3616.2,0.30657]
[1736007152098,2.96267013,3616.3,3616.2,0.03]
[1736007152294,0.2766,3615.8,3615.7,3.2078]
[1736007152497,0.2766,3615.8,3615.7,3.3778]
[1736007153391,0.2766,3615.8,3615.7,3.65441]
[1736007154400,0.2766,3615.8,3615.7,3.3778]
[1736007154699,6.11271504,3616.3,3615.7,3.3778]
[1736007154700,0.2766,3615.9,3615.7,3.6544]
[1736007154905,1.3297,3615.8,3615.7,3.65441]
[1736007160298,1.3297,3615.8,3615.7,3.3778]
[1736007160501,1.3297,3615.8,3615.7,0.03]
[1736007160708,0.27666,3615.1,3614.7,1.23165]
[1736007161008,2.7035,3615.0,3614.7,1.87497]
[1736007161398,2.98016,3615.0,3614.7,1.87497]
[1736007161598,2.7035,3615.0,3614.7,2.15165]
[1736007162601,2.7035,3615.0,3614.7,1.87497]
[1736007163010,2.7035,3615.0,3614.7,2.15165]
[1736007163211,2.7035,3615.0,3614.8,2.09755402]
[1736007163413,2.7035,3615.0,3614.9,0.27667]
[1736007163605,2.7035,3615.0,3614.9,0.90667]
[1736007164103,2.7035,3615.0,3614.9,0.63]
[1736007164310,2.98016,3615.0,3614.7,0.95497]
[1736007164603,2.98016,3615.0,3614.7,1.77497]
[1736007164808,1.60777,3614.9,3614.7,1.77497]
[1736007165008,1.3311,3614.9,3614.7,1.77497]
[1736007165511,1.3311,3614.9,3614.8,0.27668]
[1736007165711,1.3311,3614.9,3614.8,0.61668]
[1736007166714,1.3311,3614.9,3614.8,0.34]
[1736007167011,0.27663,3615.5,3614.9,0.27667]
[1736007167203,0.27663,3615.5,3615.0,0.27666]
[1736007167410,0.27663,3615.5,3615.0,1.29]
[1736007167607,0.27663,3615.5,3615.1,0.27665]
[1736007167806,0.27663,3615.5,3615.1,0.74665]
[1736007168406,0.27663,3615.5,3615.1,0.47]
[1736007168708,1.43962,3615.6,3615.3,0.27663]
[1736007168914,1.43962,3615.6,3615.3,1.53663]
[1736007169419,1.163,3615.6,3615.3,1.26]
[1736007169712,1.163,3615.6,3615.5,0.27662]
[1736007169913,1.43962,3615.6,3615.5,0.05]
[1736007170109,1.163,3615.6,3615.5,0.05]
[1736007170714,1.163,3615.7,3615.5,0.05]
[1736007170911,1.43961,3615.7,3615.5,0.05]
[1736007171810,1.163,3615.7,3615.5,0.05]
[1736007172819,1.163,3615.7,3615.6,0.27662]
[1736007173023,1.163,3615.7,3615.6,4.00662]
[1736007173318,1.163,3615.7,3615.6,3.73]
[1736007173617,1.163,3615.7,3615.6,4.00662]
[1736007176314,1.163,3615.7,3615.6,3.73]
[1736007176514,1.163,3615.7,3615.6,4.00662]
[1736007181209,1.3311,3615.9,3615.8,0.2766]
[1736007181418,1.3311,3615.9,3615.8,4.3066]
[1736007181816,3.4587351,3616.3,3615.8,4.03]
[1736007182017,3.4587351,3616.3,3616.1,0.27657]
[1736007182018,4.3441751,3616.3,3616.1,0.27657]
[1736007182214,4.3441751,3616.3,3616.1,0.05]
[1736007182417,0.27657,3616.2,3616.1,0.05]
[1736007182616,4.3441751,3616.3,3616.1,0.05]
[1736007182815,4.6207451,3616.3,3616.1,0.05]
[1736007183121,4.6207451,3616.3,3615.4,0.69157]
[1736007183122,5.30535402,3616.2,3615.2,4.33246198]
[1736007183317,0.27664,3615.4,3615.2,4.33246198]
[1736007183529,2.6835,3615.3,3615.2,5.13246198]
[1736007183814,2.6835,3615.3,3615.2,5.40911198]
[1736007184725,2.6835,3615.3,3615.2,1.07665]
[1736007185427,2.6835,3615.3,3615.2,0.8]
[1736007185620,2.6835,3615.3,3615.2,1.07665]
[1736007186332,3.8992,3615.3,3615.2,1.07665]
[1736007186632,4.17584,3615.3,3615.2,0.8]
[1736007187230,3.8992,3615.3,3615.2,0.8]
[1736007188427,3.8992,3615.3,3615.2,1.07665]
[1736007191636,1.2157,3615.3,3615.2,1.07665]
[1736007195934,1.2157,3615.3,3615.2,0.8]
[1736007197937,1.2157,3615.3,3615.2,1.07665]
[1736007198145,1.2157,3615.3,3615.2,0.8]
[1736007198636,1.2157,3615.3,3615.2,0.4869]
[1736007198837,1.2157,3615.3,3615.2,0.76355]
[1736007199929,1.2157,3615.3,3614.9,4.33246198]
[1736007200138,1.60915,3615.2,3614.9,7.49913198]
[1736007200337,1.2905,3615.1,3614.9,7.49913198]
[1736007200536,1.56716,3615.1,3614.9,7.22246198]
[1736007200733,1.2905,3615.1,3614.9,7.22246198]
[1736007201040,1.2905,3615.1,3615.0,0.27666]
[1736007201239,1.2905,3615.1,3615.0,4.37666]
[1736007202141,4.51236497,3615.2,3615.0,6.19755402]
[1736007202337,1.3325,3615.2,3615.1,0.27665]
[1736007202534,1.3325,3615.2,3615.1,3.34665]
[1736007206039,1.60915,3615.2,3615.1,3.07]
[1736007206242,1.3325,3615.2,3615.1,3.07]
[1736007208047,1.60915,3615.2,3615.1,3.07]
[1736007209444,2.02427858,3615.2,3615.1,3.07]
[1736007209845,0.27668,3614.8,3614.7,5.28743198]
[1736007210047,0.27668,3614.8,3614.7,6.35743198]
[1736007210237,1.43768,3614.8,3614.7,6.35743198]
[1736007211247,5.09043178,3614.8,3614.7,2.02497]
[1736007211445,4.81375178,3614.8,3614.7,2.02497]
[1736007212339,4.81375178,3614.8,3614.7,2.30165]
[1736007212537,3.65275178,3614.8,3614.7,2.30165]
[1736007213144,3.65275178,3614.8,3614.7,4.39920402]
[1736007213943,1.161,3615.0,3614.9,0.27667]
[1736007214144,1.161,3615.0,3614.9,1.53667]
[1736007214339,3.5142832,3615.1,3614.9,1.26]
[1736007214551,3.2376232,3615.1,3614.9,1.26]
[1736007214750,3.2376232,3615.1,3615.0,0.27666]
[1736007214952,3.2376232,3615.1,3615.0,3.16666]
[1736007216357,1.3325,3615.2,3615.0,3.16666]
[1736007216850,1.3325,3615.2,3615.0,2.89]
[1736007217752,1.3325,3615.2,3615.0,3.16666]
[1736007217951,1.3325,3615.2,3615.0,2.89]
[1736007218551,3.2078,3615.1,3614.7,5.28743198]
[1736007218854,0.27669,3614.6,3614.5,5.64219155]
[1736007219053,4.64549,3614.6,3614.5,5.64219155]
[1736007220749,0.27671,3614.5,3614.1,0.27673]
[1736007220945,0.27671,3614.5,3614.1,2.74673]
[1736007221145,1.5762096,3614.6,3614.2,0.27672]
[1736007221351,1.5762096,3614.6,3614.2,1.91]
[1736007221556,1.5762096,3614.6,3614.3,0.27671]
[1736007221557,1.8528996,3614.6,3614.3,0.27671]
[1736007221756,1.1971,3614.5,3614.3,1.41]
[1736007221949,2.3866,3614.5,3614.3,1.41]
[1736007222554,2.6633,3614.5,3614.3,1.41]
[1736007223354,0.27671,3614.4,3614.3,1.41]
[1736007223660,2.3866,3614.5,3614.3,1.41]
[1736007224149,2.6633,3614.5,3614.3,1.41]
[1736007224345,2.3866,3614.5,3614.3,1.41]
[1736007224549,0.27671,3614.4,3614.3,1.41]
[1736007224850,2.6633,3614.5,3614.3,1.41]
[1736007226762,0.27671,3614.4,3614.3,1.41]
[1736007227560,2.6633,3614.5,3614.3,1.41]
[1736007227861,0.27671,3614.4,3614.3,1.41]
[1736007229661,2.6633,3614.5,3614.3,1.41]
[1736007230262,2.15087749,3614.6,3614.4,2.09755402]
[1736007230468,2.15087749,3614.6,3614.5,1.4236]
[1736007230761,2.15087749,3614.6,3614.5,2.9767]
[1736007231554,2.42756749,3614.6,3614.5,2.7]
[1736007231764,0.27669,3614.6,3614.5,2.7]
[1736007232261,0.27669,3614.7,3614.5,2.7]
[1736007232560,2.15087749,3615.0,3614.8,1.72331]
[1736007232756,0.27667,3614.9,3614.8,1.95331]
[1736007233850,3.23212854,3615.0,3614.8,1.95331]
[1736007234256,3.23212854,3615.0,3614.9,0.27667]
[1736007234459,3.23212854,3615.0,3614.9,5.71667]
[1736007234653,2.15262624,3615.0,3614.9,5.44]
[1736007234865,2.15262624,3615.0,3614.9,5.71667]
[1736007236066,3.23390098,3615.1,3615.0,0.27666]
[1736007236067,0.00177244,3615.1,3615.0,0.27666]
[1736007236269,0.00177244,3615.1,3615.0,7.16151402]
[1736007236968,0.27842244,3615.1,3615.0,7.16151402]
[1736007237263,0.00177244,3615.1,3615.0,7.16151402]
[1736007240065,0.00177244,3615.1,3615.0,10.36931402]
[1736007244970,0.00177244,3615.1,3615.0,7.07446]
[1736007249367,0.27842244,3615.1,3615.0,3.59]
[1736007249669,1.48622244,3615.1,3615.0,3.59]
[1736007250667,1.20957244,3615.1,3615.0,3.86666]
[1736007251168,0.00177244,3615.1,3615.0,9.17201402]
[1736007251364,0.26662868,3615.3,3615.0,13.89535402]
[1736007251559,0.26662868,3615.3,3615.2,0.27665]
[1736007251762,0.26662868,3615.3,3615.2,4.19665]
[1736007251962,0.26662868,3615.6,3615.5,0.27662]
[1736007252163,0.26662868,3615.6,3615.5,7.35442]
[1736007252665,0.26662868,3615.6,3615.5,8.51602]
[1736007253361,0.27659,3616.0,3615.5,8.2394]
[1736007253564,1.48648,3616.1,3615.9,0.27659]
[1736007253758,1.2099,3616.1,3615.9,0.58]
[1736007253969,1.2099,3616.1,3616.0,0.27659]
[1736007254167,1.2099,3616.1,3616.0,0.44]
[1736007254363,1.48648,3616.1,3616.0,0.44]
[1736007254671,1.2099,3616.1,3616.0,0.44]
[1736007254871,1.48648,3616.1,3616.0,0.44]
[1736007255568,1.2099,3616.1,3615.5,3.2078]
[1736007255868,6.51525402,3616.1,3615.5,4.5178]
[1736007256068,0.27661,3615.7,3615.5,4.5178]
[1736007256270,1.1448,3615.6,3615.5,1.31]
[1736007256867,1.42142,3615.6,3615.5,1.31]
[1736007259476,2.58142,3615.6,3615.5,1.31]
[1736007259670,0.27664,3615.3,3615.0,0.27666]
[1736007259873,2.67545,3615.2,3615.0,4.28]
[1736007260373,0.27665,3615.1,3615.0,4.28]
[1736007260570,7.70415402,3615.2,3614.8,1.72331]
[1736007260775,0.27667,3614.9,3614.8,1.82331]
[1736007260978,0.27667,3614.9,3614.8,1.72331]
[1736007263874,0.49976595,3614.9,3614.8,1.72331]
[1736007264076,7.32064997,3614.9,3614.1,3.2078]
[1736007264282,0.27673,3614.2,3614.1,1.19]
[1736007265775,2.51402,3614.3,3614.1,1.19]
[1736007265979,0.27672,3614.2,3614.1,1.19]
[1736007267080,0.27672,3614.2,3613.8,0.27675]
[1736007267081,0.27678,3613.4,3613.2,3.2078]
[1736007267383,1.43579,3613.3,3613.2,3.2078]
[1736007267680,2.3603,3613.3,3613.2,3.5046]
[1736007267882,1.2013,3613.3,3613.2,3.2278]
[1736007269379,1.159,3613.5,3613.2,3.2278]
[1736007269577,1.43578,3613.5,3613.2,0.02]
[1736007271371,0.27679,3613.4,3613.2,0.02]
[1736007273284,1.159,3613.5,3613.2,0.02]
[1736007273587,0.27679,3613.4,3613.2,0.02]
[1736007274487,1.1846,3613.8,3613.2,0.02]
[1736007274788,1.159,3614.0,3613.3,2.09755402]
[1736007274986,0.27675,3613.9,3613.5,0.27677]
[1736007275188,0.27675,3613.9,3613.5,4.21677]
[1736007275485,0.27675,3613.9,3613.6,1.1732]
[1736007275674,1.159,3614.0,3613.6,3.6732]
[1736007275875,0.27676,3613.8,3613.6,3.6732]
[1736007276079,0.27675,3613.9,3613.6,3.6732]
[1736007276784,3.2078,3614.1,3614.0,0.27674]
[1736007277084,5.83250854,3614.8,3614.5,0.2767]
[1736007277282,5.83250854,3614.8,3614.5,0.54]
[1736007277283,3.23212854,3614.7,3614.5,0.54]
[1736007277680,3.50881854,3614.7,3614.5,0.54]
[1736007277881,3.23212854,3614.7,3614.5,0.54]
[1736007278482,2.60038,3614.8,3614.5,0.54]
[1736007279288,2.3237,3614.8,3614.5,0.54]
[1736007279685,2.60038,3614.8,3614.5,0.54]
[1736007279885,0.27669,3614.7,3614.5,0.54]
[1736007280681,2.3237,3614.8,3614.5,0.54]
[1736007280886,2.60038,3614.8,3614.5,0.54]
[1736007281587,2.3237,3614.8,3614.5,0.8167]
[1736007281788,1.159,3614.8,3614.5,0.8167]
[1736007284799,1.159,3614.8,3614.6,0.27669]
[1736007285089,3.2078,3615.1,3614.6,3.6712]
[1736007285286,3.2078,3615.1,3615.0,0.27666]
[1736007285486,1.159,3615.5,3615.2,0.27664]
[1736007285687,1.159,3615.5,3615.2,2.28664]
[1736007286192,0.27663,3615.4,3615.2,2.01]
[1736007286998,1.159,3615.5,3615.2,2.01]
[1736007287189,0.27663,3615.4,3615.2,2.01]
[1736007288193,2.2727,3615.5,3615.2,2.01]
[1736007288395,0.27664,3615.3,3615.2,2.01]
[1736007288696,0.27664,3615.4,3615.2,2.01]
[1736007288898,2.2727,3615.5,3615.2,2.01]
[1736007289100,0.27664,3615.3,3615.2,2.01]
[1736007290392,0.27666,3615.1,3614.7,1.41778]
[1736007290701,3.18335402,3615.4,3614.8,1.1326]
[1736007290899,0.27666,3615.1,3614.8,2.2226]
[1736007291489,3.18335402,3615.4,3614.8,2.2226]
[1736007291696,1.36287,3615.0,3614.8,2.2226]
[1736007291991,1.36286,3615.0,3614.8,2.2226]
[1736007292394,0.27667,3614.9,3614.8,2.2226]
[1736007292596,1.36287,3615.0,3614.8,2.2226]
[1736007293499,1.0862,3615.0,3614.8,2.2226]
[1736007293695,0.27667,3614.9,3614.8,1.09]
[1736007300800,3.2078,3615.2,3614.8,1.09]
[1736007301007,1.158,3615.3,3615.1,0.27665]
[1736007301201,1.158,3615.3,3615.1,1.64665]
[1736007301396,3.23212854,3615.6,3615.5,0.27662]
[1736007301609,3.23212854,3615.6,3615.5,4.18662]
[1736007301812,1.45092854,3615.6,3615.5,4.18662]
[1736007302105,1.45092854,3615.8,3615.7,0.27661]
[1736007302411,1.45092854,3615.8,3615.7,6.98441]
[1736007303913,3.45713402,3616.1,3615.7,6.98441]
[1736007304111,0.27659,3616.0,3615.7,6.7078]
[1736007304501,0.27659,3616.0,3615.7,6.9844]
[1736007305107,3.18055402,3616.1,3615.7,6.7078]
[1736007305406,0.27659,3616.0,3615.7,6.9844]
[1736007305610,3.45713402,3616.1,3615.7,6.9844]
[1736007306010,3.18055402,3616.1,3615.8,0.2766]
[1736007306207,3.18055402,3616.1,3615.8,0.3866]
[1736007308011,0.27659,3615.9,3615.8,0.11]
[1736007308217,6.38835402,3616.1,3615.0,3.2078]
[1736007308410,0.27664,3615.4,3615.0,2.49]
[1736007308607,1.158,3615.3,3615.0,2.76666]
[1736007308808,3.3757,3615.3,3615.0,2.76666]
[1736007309512,3.3757,3615.3,3615.1,0.27665]
[1736007309816,3.3757,3615.3,3615.1,1.43]
[1736007310111,5.58200402,3615.2,3615.1,1.43]
[1736007310318,0.27665,3615.1,3614.5,3.2078]
[1736007310516,0.27668,3614.8,3614.5,3.3978]
[1736007311113,1.0644,3615.1,3614.5,3.3978]
[1736007311310,1.0644,3615.1,3614.6,0.27669]
[1736007311311,0.27667,3615.0,3614.6,0.27669]
[1736007311516,1.0644,3615.1,3614.7,0.27668]
[1736007311517,1.34106,3615.1,3614.7,0.27668]
[1736007311719,1.34106,3615.1,3614.7,0.35668]
[1736007311912,3.2078,3615.2,3614.7,0.08]
[1736007312119,3.2078,3615.2,3615.1,0.27665]
[1736007312419,3.2078,3615.2,3615.1,0.43665]
[1736007312719,1.158,3615.4,3615.3,0.27664]
[1736007313019,1.158,3615.4,3615.3,0.33664]
[1736007313715,1.158,3615.9,3615.8,0.2766]
[1736007313922,1.158,3615.9,3615.8,2.7766]
[1736007314111,4.21928975,3616.1,3615.8,2.5]
[1736007314310,4.21928975,3616.1,3616.0,0.27659]
[1736007314617,4.21928975,3616.1,3616.0,1.76659]
[1736007315011,1.158,3616.3,3616.1,0.27657]
[1736007315217,1.158,3616.3,3616.1,0.30657]
[1736007315922,1.158,3616.3,3616.1,0.03]
[1736007316128,1.43457,3616.3,3616.1,0.03]
[1736007316628,0.27659,3616.0,3615.6,0.27661]
[1736007316826,1.1298,3616.2,3615.6,2.87]
[1736007317032,2.2878,3616.2,3615.9,0.27659]
[1736007317230,2.2878,3616.2,3615.9,0.44659]
[1736007317734,2.2878,3616.2,3615.9,0.17]
[1736007318436,0.27658,3616.1,3615.9,0.17]
[1736007319326,2.2878,3616.2,3615.9,0.17]
[1736007319529,0.27659,3616.0,3615.9,0.17]
[1736007319929,2.2878,3616.2,3615.5,2.234]
[1736007320220,0.2766,3615.8,3615.5,3.41062]
[1736007320426,1.1591,3615.9,3615.5,3.134]
[1736007320641,1.43569,3615.9,3615.6,0.27661]
[1736007320930,1.43569,3615.9,3615.6,0.54661]
[1736007321726,1.1591,3615.9,3615.6,0.54661]
[1736007321936,1.1591,3615.9,3615.7,0.27661]
[1736007322134,1.1591,3615.9,3615.7,0.26]
[1736007323336,1.43569,3615.9,3615.7,0.26]
[1736007323528,1.1591,3615.9,3615.7,0.26]
[1736007323929,1.43569,3615.9,3615.7,0.26]
[1736007324335,1.157,3615.9,3615.8,0.2766]
[1736007324636,2.2354,3616.2,3615.8,2.28755402]
[1736007324842,1.157,3616.2,3616.0,0.27658]
[1736007325135,1.157,3616.2,3616.0,0.31658]
[1736007325436,1.157,3616.2,3616.1,1.1605]
[1736007325644,1.157,3616.2,3616.1,1.2305]
[1736007326137,1.157,3616.2,3616.1,1.50708]
[1736007326538,1.157,3616.2,3616.1,1.2305]
[1736007326738,1.157,3616.2,3616.1,1.50708]
[1736007327040,1.157,3616.2,3616.1,1.2305]
[1736007327834,0.27656,3616.3,3616.1,1.2305]
[1736007328131,1.43256,3616.3,3616.1,1.2305]